Cogmind - Beta 16.1 *** ADVENTURER MODE // 2026.03.24 @ 09:31:06 Player: Arzee Result: Destroyed by G-47 Trooper with Particle Gun Performance ------------- Evolutions (0) 0 Regions Visited (1) 200 Robots Destroyed (3) 15 Value Destroyed (66) 66 Prototype IDs (0) 0 Alien Tech Used (0) 0 Bonus (0) 0 TOTAL SCORE: 281 Bonus ------- None Cogmind --------- Core Integrity 0/250 Matter 300/300 Energy 74/125 System Corruption 0% Temperature Warning (303) Movement Core (50) Location -10/Materials Parts ------- > --- POWER (1) -------- Light Ion Engine > --- PROPULSION (2) --- (None) > --- UTILITY (2) ------ (None) > --- WEAPON (2) ------- (None) > --- INVENTORY (5) ---- Hover Unit Tractor Beam Small Laser Datajack Peak State ------------ > --- POWER ------------ Light Ion Engine > --- PROPULSION ------- Wheel Wheel > --- UTILITY ---------- (None) > --- WEAPON ----------- Small Laser Assault Rifle > --- INVENTORY -------- (None) [Rating: 5] Favorites ----------- Power Light Ion Engine Engine Light Ion Engine Propulsion Wheel Leg Aluminum Leg Wheel Wheel Utility None Weapon Small Laser Energy Gun Small Laser Ballistic Gun Assault Rifle Build | -11 -10 ------- Run | Yrd Mat Slots Evolved . | . . Power . | . . Propulsion . | . . Utility . | . . Weapon . | . . Parts Attached 10 | 8 2 Power 2 | 1 1 Engine 2 | 1 1 Core . | . . Reactor . | . . Propulsion 4 | 4 . Treads . | . . Leg 2 | 2 . Wheel 2 | 2 . Hover . | . . Flight . | . . Utility . | . . Device . | . . Storage . | . . Processor . | . . Hackware . | . . Protection . | . . Artifact . | . . Weapon 4 | 3 1 Energy Gun 3 | 2 1 Energy Cannon . | . . Ballistic Gun 1 | 1 . Ballistic Cannon . | . . Launcher . | . . Special Weapon . | . . Impact Weapon . | . . Slashing Weapon . | . . Piercing Weapon . | . . Special Melee Weapon . | . . Unidentified Prototypes . | . . Parts Lost 6 | . 6 Power 1 | . 1 Propulsion 2 | . 2 Utility . | . . Weapon 3 | . 3 Highest Loss Streak 6 | . 6 To Critical Strikes . | . . Average Backups 1 | . 1 Power . | . . Propulsion . | . . Utility . | . . Weapon . | . 1 Tool/Special . | . . Unused Backups 1 | . 1 Power . | . . Propulsion . | . . Utility . | . . Weapon . | . . Tool/Special 1 | . 1 Average Slot Usage (%) 60 | . 60 Engine 10 | . 10 Wheel 23 | . 23 Energy Gun 24 | . 24 Ballistic Gun 1 | . 1 Peak Build Rating 5 | 5 5 Average Rating 3 | 3 4 On Entrance 2 | . 5 Avg Prop Armor Cover (%) . | . . Naked Turns 6 | . 6 Heaviest Build 6 | 6 6 Greatest Support 20 | 20 20 Greatest Overweight (x) . | . . Average Overweight (x) . | . . Largest Inventory Capacity 5 | 5 5 Average Capacity 5 | 5 5 Most Carried 4 | 2 4 Average Carried 1 | . 1 Final Capacity 5 | 5 5 Final Carried 4 | 1 4 Class Distribution -------------------- 100% | Mutant Dominant Class ---------------- Mutant | -10/Materials Resources | -11 -10 ----------- Run | Yrd Mat Matter Collected 315 | 285 30 Remotely . | . . Salvage Created 85 | 44 41 Parts 4 | 2 2 Haulers Intercepted . | . . Recyclers Shooed . | . . Parts Field Recycled . | . . Retrieved Matter . | . . Parts Self-Destructed . | . . Prevented . | . . Parts Restored . | . . Kills | -11 -10 ------- Run | Yrd Mat Combat Hostiles Destroyed 1 | 1 . Guns 1 | 1 . Classes Destroyed 2 | 1 1 Watcher 2 | . 2 Grunt 1 | 1 . Best Kill Streak 2 | 1 2 Combat Bots Only 1 | 1 . Max Kills in Single Turn 1 | 1 1 Gunslinging . | . . Exploded . | . . Melee . | . . Uniques/NPCs Destroyed . | . . Combat | -11 -10 -------- Run | Yrd Mat Hostile Shots Fired 90 | 6 84 Missed 24 | 3 21 Hits 66 | 3 63 Projectile 66 | 3 63 Critical Strikes 1 | . 1 Damage Taken 619 | 25 594 Core 258 | . 258 Absorbed by Shields . | . . Ignored by Resistances 190 | 8 182 Core Remaining (%) 100 | 100 . Volleys Fired 21 | 5 16 Largest 2 | 2 2 Hottest 90 | 60 90 Shots Fired 32 | 10 22 Gun 32 | 10 22 Cannon . | . . Launcher . | . . Special . | . . Kinetic 10 | 5 5 Thermal 22 | 5 17 Explosive . | . . Electromagnetic . | . . Robot Hit Streak 11 | 3 11 Robot Miss Streak 2 | 2 1 Penetration Max . | . . Secondary Targets . | . . Shots Hit Robots 24 | 7 17 Core Hits 9 | 2 7 Critical Kills . | . . Critical Parts Destroyed . | . . Critical Strikes 1 | . 1 Burn 1 | . 1 Melee Attacks . | . . Impact . | . . Slashing . | . . Piercing . | . . Sneak Attacks . | . . Combat Hostiles . | . . Follow-up Attacks . | . . Damage Inflicted 327 | 88 239 Guns 327 | 88 239 Cannons . | . . Explosions . | . . Melee . | . . Ramming . | . . Kinetic 111 | 54 57 Thermal 216 | 34 182 Explosive . | . . Electromagnetic . | . . Impact . | . . Slashing . | . . Piercing . | . . Highest Corruption . | . . Average Corruption . | . . Corruption Purged . | . . Corruption Blocked . | . . Overload Shots . | . . Overflow Damage . | . . Projectiles . | . . Explosions . | . . Melee . | . . Knockbacks . | . . Impact . | . . Kinetic . | . . Secondary . | . . Self-Inflicted Damage . | . . Shots . | . . Rammed . | . . Targets Rammed . | . . Kicked . | . . Crushed . | . . Highest Temperature 411 | 12 411 Average Temperature 216 | 10 285 Received Heat Transfer 471 | 18 453 Effects 3 | . 3 Energy Bleed 1 | . 1 Short Circuit 1 | . 1 Damage (minor) 1 | . 1 Siege Activations . | . . Martial Activations . | . . Shielding Activations . | . . Robots Disrupted . | . . Combat Hostiles . | . . Robots Corrupted . | . . Combat Hostiles . | . . Parts Fried . | . . Impact Corruptions . | . . Robots Melted . | . . Combat Hostiles . | . . Parts Melted . | . . Heat Transferred 644 | 75 569 Parts Sabotaged . | . . Parts Stolen . | . . Parts Stripped . | . . Power Chain Reactions . | . . Alert | -11 -10 ------- Run | Yrd Mat Maximum Alert Level . | . . Low Security (%) 100 | 100 100 Level 1 . | . . Level 2 . | . . Level 3 . | . . Level 4 . | . . Level 5 . | . . High Security . | . . Max Security . | . . Peak Influence 20 | 20 7 Initial 5 | . 5 Average 1 | 1 1 Influence Increases 34 | 20 14 Destroy 0b10 Robot/C 20 | 20 . Destroy 0b10 Robot/NC 10 | . 10 Destroy Leader 4 | . 4 Influence Decreases 34 | 10 24 Entered New Map 5 | . 5 Time Decay 22 | 10 12 Lost Part 7 | . 7 Squads Dispatched . | . . Investigation . | . . Extermination . | . . Reinforcement . | . . Assault . | . . Garrison . | . . Intercept . | . . Searches Triggered . | . . Construction Impeded . | . . Haulers Reinforced . | . . Active Scanning Responses . | . . Cargo Convoy Interrupts . | . . Stealth | -11 -10 --------- Run | Yrd Mat Distress Signals 1 | . 1 Communications Jammed . | . . Distress Signals . | . . Times Spotted 9 | 1 8 Peak Tracking Total 7 | 1 7 Tactical Retreats . | . . Traps | -11 -10 ------- Run | Yrd Mat Traps Triggered . | . . Indirectly . | . . Trap Hack Attempts . | . . Triggered . | . . Disarmed . | . . Reprogrammed . | . . Reused . | . . Traps Extracted . | . . Installed . | . . Triggered . | . . Machines | -11 -10 ---------- Run | Yrd Mat Machines Disabled . | . . Max in Single Turn . | . . Machines Repaired . | . . Machines Dismantled . | . . Machines Sabotaged . | . . Overloaded Fab Kills . | . . Hacking | -11 -10 --------- Run | Yrd Mat Machines Accessed 1 | . 1 Terminals 1 | . 1 Fabricators . | . . Repair Stations . | . . Recycling Units . | . . Scanalyzers . | . . Garrison Access . | . . Total Hacks 1 | . 1 Successful 1 | . 1 Failed . | . . Catastrophic . | . . Database Lockouts . | . . Manual . | . . Terminals 1 | . 1 Fabricators . | . . Repair Stations . | . . Recycling Units . | . . Scanalyzers . | . . Garrison Access . | . . Terminal Hacks 1 | . 1 Record 1 | . 1 Fabricator Hacks . | . . Repair Station Hacks . | . . Recycling Unit Hacks . | . . Scanalyzer . | . . Garrison Access Hacks . | . . Unauthorized Hacks . | . . Terminals . | . . Fabricators . | . . Repair Stations . | . . Recycling Units . | . . Scanalyzers . | . . Garrison Access . | . . Data Cores Recovered . | . . Used . | . . Hacking Detections . | . . Full Trace Events . | . . Feedback Events . | . . Feedback Blocked . | . . Robot Schematics Acquired . | . . Robots Built . | . . Authchips . | . . Time . | . . Total Robot Build Rating . | . . Part Schematics Acquired . | . . Parts Built . | . . Authchips . | . . Time . | . . Total Part Build Rating . | . . Part Studies Acquired . | . . Parts Repaired . | . . Time . | . . Parts Recycled . | . . Recycled Matter . | . . Retrieved Matter . | . . Retrieved Components . | . . Parts Scanalyzed . | . . Part Schematics Acquired . | . . Parts Damaged . | . . Bothacking | -11 -10 ------------ Run | Yrd Mat Used RIF Installer . | . . Robots Hacked . | . . Non-combat . | . . Combat . | . . Robot Hacks Applied . | . . Relay Couplers Released . | . . Fabnet Peak Effective % . | . . Robots Rewired . | . . Allies Hacked . | . . Hacks Repelled . | . . Allies | -11 -10 -------- Run | Yrd Mat Total Allies . | . . Largest Group . | . . Highest-Rated Group . | . . Highest-Rated Ally . | . . Total Orders . | . . Ally Attacks . | . . Total Damage . | . . Kills . | . . Allies Corrupted . | . . Allies Melted . | . . Intel | -11 -10 ------- Run | Yrd Mat Active Infowar (turns) . | . . Robot Analysis Total . | . . Derelict Logs Recovered . | . . Drone Launches . | . . Drone Recoveries . | . . Exploration | -11 -10 ------------- Run | Yrd Mat Turns Passed 198 | 86 112 Spaces Moved 157 | 73 84 Core 29 | 24 5 Treads . | . . Legs 4 | 4 . Wheels 124 | 45 79 Hover . | . . Flight . | . . Fastest Speed 50 | 50 50 Average Speed 75 | 72 78 Slowest Speed 120 | 120 80 Overloaded Moves . | . . Propulsion Burnouts . | . . Robots Hopped . | . . Potential Cave-ins . | . . Cave-ins Triggered . | . . Exploration Rate (%) 15 | 5 26 Regions Visited 1 Branch Regions . Pre-discovered Areas . | . . Known Exits Taken . | . . Unknown Exits Taken 1 | 1 . Scrap Searched . | . . Spaces Dug . | . . Terrain Destroyed . | . . Melee . | . . Projectile . | . . AOE . | . . Terrain Rammed . | . . Walls Destroyed . | . . Machines Disabled . | . . Actions | -11 -10 --------- Run | Yrd Mat Total 203 | 95 108 Wait . | . . Move 156 | 72 84 Hop . | . . Pick Up 13 | 8 5 Fast Attach . | . . Attach 7 | 5 2 Detach . | . . Swap 4 | 3 1 Drop 2 | 2 . Fire 21 | 5 16 Melee . | . . Ram . | . . Kick . | . . Crush . | . . Escape Stasis . | . . Rewire . | . . Trap . | . . Miscellaneous . | . . Route ------- -11/Scrapyard -10/Materials (discovered 1 exit: [*Min]) History --------- Turn | Location | Event 2 | -11/Scrapyard | Met Revision 17 61 | -11/Scrapyard | Discovered new exit (range 8) 87 | -11/Scrapyard | Entered Materials 190 | -10/Materials | Core integrity fell below 50% 193 | -10/Materials | Discovered new exit (range 7) 196 | -10/Materials | Core integrity fell below 20% 199 | -10/Materials | Destroyed by G-47 Trooper with Particle Gun Last Messages --------------- Overheating: Short circuit. Wheel destroyed. R-06 Scavenger collects Visual Processing Unit. Broken Wheel destroyed. W-16 Scout destroyed. Med. Laser destroyed. [Achievement: There's More Where That Came From] R-06 Scavenger collects Hover Unit. Overheating: Assault Rifle damaged (-29). Assault Rifle destroyed. Acquired 20 matter. EXIT=FOUND R-06 Scavenger destroyed. Acquired Tractor Beam. Critical hit (Burn: +37). Acquired Lgt. Ion Engine. Acquired 10 matter. Overheating: Energy bleed (-24). Acquired Hover Unit. [Achievement: First Step to Greatness] Map ----- +----------------------------------------------------+ | ?????????????????????????????????????????????????? | | ?????????????????????????????????????????????????? | | ?????????????????????????????????????????????????? | | ?????????????????????????????????????????????????? | | ?????????????????????????????????????????????????? | | ?????????????????????????????????????????????????? | | ?????????????????????????????????????????????????? | | ?????????????????????????????????????????????????? | | ?????????????????????????????????????????????????? | | ?????????????????????????????????????????????????? | | ??????????????????????????? ???????????????????? | | ??????????????????????????? #??????????????????? | | ??????????????????????????? #??????????????????? | | ??????????????????????????? #??????????????????? | | ??????? ??????????????????? #??????????????????? | | ??????? ??????????????????? #??????????????????? | | ??????? ??????????????????? #??????????????????? | | ??????# ??????????????????# #??????????????????? | | ??????# ###???????????????# #??????????????????? | | ??????# #???????????????# t#??????????????????? | | ??????+ #??????########?# #??????????????????? | | ??????# #??????# #?# #???#####??????????? | | ??????# #??????# """ ### ### ##+#???????? | | ??????# #??????# """ # gg ????????? | | ??????# #??????# """ #%!a g T ????????? | | ####### #??????# /@% g u ??????? | | # #??????# # ##### #??????????? | | """ # #??????###+#### g #????????????????????? | | """ # #????????# #?# ""???????????????????? | | """ + #????????# #?# "#?????????????????? | | # ########## ### |"#?????????????????? | | """ # ## < ""#?????????????????? | | """ # ## |"#?????????????????? | | """ # ## "#?????????????????? | | # ######### ## """#?????????????????? | | ####### #???????# ### ####?????????????????? | | ??????# #???????# ^ #????????????????????? | | ??????# #???????# #????????????????????? | | ??????# #???????+ #????????????????????? | | ?????## ##??????# #????????????????????? | | ###### #??????# ????????????????????? | | #??????# "T" ???????????????????? | | T #??????# """ ???????????????????? | | #??????# ???????????????????? | | ###### #??????# ??? ????????????????????? | | ?????#######???????##"???##??????????????????????? | | ?????????????????????"???????????????????????????? | | ?????????????????????????????????????????????????? | | ?????????????????????????????????????????????????? | | ?????????????????????????????????????????????????? | +----------------------------------------------------+ Best States ------------- Heat Dissipation 25 Energy Generation 10 Energy Capacity 125 Matter Stores 300 Matter Capacity 300 Sight Range 16 Terrain Scan Density 10 Resistance: KI 20 Resistance: TH 20 Resistance: EX 20 Resistance: EM 20 Resistance: I 20 Resistance: S 20 Resistance: P 20 Evasion (%) 50 Offensive Hacking 10 Item Schematics ----------------- None Robot Schematics ------------------ None Fabricated ------------ Nothing Repaired ---------- Nothing Studied --------- None Alien Tech Used ----------------- None Achievements -------------- DATA ERROR: Steam Global Achievement% First Step to Greatness There's More Where That Came From Challenges ------------ None Game ------ Seed MultitargetingFlightSpoofer Manual? 0 Play Time 00:07:36 Cumulative 0.0 hours Start 2026.03.24 @ 09:25:11 End 2026.03.24 @ 09:31:06 Sessions 1 Manual Loads 0 Difficulty Adventurer Special Mode None Game No. 2 Rogue 0 Adventurer 2 Explorer 0 Win Type - Total 0 Types 0/0/0/0/0/0/0/0/0/0 Lore% 1 Gallery% 3 Achievement% 5 Wizard Run 0 Options --------- Layout 1 ASCII 0 Keyboard 0 Movement Mouse Keybinds 0 Fullscreen 1 Font 32/Tamsyn Map View 50x35 Zoom Use 0% Tactical HUD 0 Map Filters NONE Filters NONE Steam 1 RUN: 484feb11-bb58-4e67-ae06-885c671bca32